bitfinex-derivatives/quotes_BTCF0:USTF0_20250212
["timestamp","ask_amount","ask_price","bid_price","bid_amount"]
[1739367861803,0.3608,94695.0,94693.0,0.51607225]
[1739367861999,0.3638,94695.0,94693.0,0.51507225]
[1739367862197,0.6638,94695.0,94682.0,0.00158428]
[1739367862409,0.5720424,94683.0,94653.0,0.01629436]
[1739367862609,0.3608,94673.0,94648.0,0.00158507]
[1739367862997,0.3608,94673.0,94668.0,0.25048416]
[1739367863303,0.3608,94669.0,94668.0,0.25048416]
[1739367863705,0.6608,94669.0,94635.0,0.01662888]
[1739367863897,0.3608,94637.0,94634.0,0.55863107]
[1739367864697,0.3608,94637.0,94634.0,0.50588678]
[1739367865999,0.2113473,94636.0,94634.0,0.50588678]
[1739367866392,0.2113473,94636.0,94626.0,0.0001585]
[1739367866393,0.2113674,94627.0,94626.0,0.0001585]
[1739367866593,0.5721674,94627.0,94626.0,0.0001585]
[1739367866798,0.8721674,94627.0,94626.0,0.0001585]
[1739367867498,0.8781674,94627.0,94626.0,0.0011585]
[1739367867900,0.3668,94627.0,94610.0,0.51384969]
[1739367868101,0.9330047,94611.0,94602.0,0.01653001]
[1739367868421,0.9330047,94611.0,94600.0,0.1]
[1739367868422,0.2114232,94602.0,94600.0,0.1]
[1739367868802,0.3,94602.0,94590.0,0.18813572]
[1739367869012,0.5722478,94591.0,94590.0,0.18813572]
[1739367869509,0.5722478,94591.0,94581.0,0.0001585]
[1739367869510,0.35622696,94590.0,94581.0,0.0001585]
[1739367869814,0.5722679,94582.0,94581.0,0.0001585]
[1739367870309,0.8722679,94582.0,94581.0,0.0001585]
[1739367870900,0.3608,94582.0,94561.0,0.32368566]
[1739367871097,0.7216,94562.0,94561.0,0.32368566]
[1739367871499,1.0216,94562.0,94541.0,0.00158636]
[1739367871702,0.3608,94551.0,94500.0,0.11]
[1739367871901,0.2115846,94530.0,94513.0,0.01]
[1739367872209,0.3608,94524.0,94516.0,0.01015869]
[1739367872602,0.3608,94521.0,94516.0,0.01015869]
[1739367872997,0.3608,94521.0,94516.0,0.00015869]
[1739367873212,0.3608,94521.0,94500.0,0.11]
[1739367873402,0.7216,94501.0,94500.0,0.11]
[1739367873597,0.3608,94495.0,94471.0,0.00158806]
[1739367873802,0.3608,94495.0,94451.0,0.4196]
[1739367873803,0.2117306,94465.0,94463.0,0.32257303]
[1739367873999,0.3608,94464.0,94463.0,0.32257303]
[1739367874395,0.6608,94464.0,94463.0,0.32257303]
[1739367874610,0.6588,94464.0,94463.0,0.32257303]
[1739367875318,0.3588,94464.0,94450.0,0.01]
[1739367875502,0.3608,94451.0,94450.0,0.01]
[1739367875905,0.3608,94454.0,94450.0,0.02]
[1739367876201,0.3588,94464.0,94463.0,0.001]
[1739367876399,0.3588,94464.0,94463.0,0.011]
[1739367876798,0.3588,94464.0,94463.0,0.01]
[1739367877001,0.3588,94464.0,94457.0,0.3608]
[1739367877506,0.2117255,94468.0,94458.0,1.5]
[1739367877705,0.00015879,94473.0,94458.0,1.5]
[1739367878010,0.3608,94495.0,94472.0,0.3608]
[1739367878011,0.3608,94487.0,94472.0,0.3608]
[1739367878315,0.2116888,94484.0,94468.0,0.1964]
[1739367878501,0.3608,94495.0,94476.0,0.3608]
[1739367878706,0.3608,94495.0,94482.0,0.3608]
[1739367878912,0.2116546,94499.0,94482.0,0.3608]
[1739367879114,0.2116546,94499.0,94490.0,0.3608]
[1739367879308,0.00015879,94498.0,94490.0,0.3608]
[1739367879508,0.3608,94508.0,94490.0,0.3608]
[1739367879703,0.3608,94508.0,94491.0,0.4153]
[1739367879916,0.3608,94497.0,94491.0,0.36255571]
[1739367880414,0.3608,94504.0,94491.0,0.36255571]
[1739367880818,0.3608,94495.0,94491.0,0.36255571]
[1739367881019,0.2116641,94495.0,94491.0,0.36255571]
[1739367881806,0.00015879,94503.0,94491.0,0.36255571]
[1739367882309,0.007,94508.0,94500.0,0.3608]
[1739367882511,0.3608,94515.0,94500.0,0.3608]
[1739367882814,0.3608,94515.0,94492.0,0.4174]
[1739367883119,0.007,94503.0,94492.0,0.36465571]
[1739367883413,0.3608,94515.0,94492.0,0.36465571]
[1739367883414,0.3608,94515.0,94493.0,0.4177]
[1739367883614,0.3608,94526.0,94493.0,0.4177]
[1739367883615,0.3608,94526.0,94498.0,0.3608]
[1739367883817,0.0001587,94507.0,94500.0,0.35622696]
[1739367884013,0.2115865,94529.0,94506.0,0.3608]
[1739367884214,0.007,94515.0,94507.0,0.4177]
[1739367884409,0.2115865,94529.0,94514.0,0.3608]
[1739367884614,0.2115865,94529.0,94515.0,0.4177]
[1739367884817,0.3608,94535.0,94515.0,0.4177]
[1739367885021,0.3608,94539.0,94515.0,0.4177]
[1739367885344,0.3608,94545.0,94530.0,0.3608]
[1739367885514,0.3608,94545.0,94531.0,0.4043]
[1739367885710,0.5723279,94556.0,94542.0,0.3608]
[1739367886109,0.5723279,94556.0,94542.0,0.30805571]
[1739367886308,0.3608,94556.0,94542.0,0.30805571]
[1739367886514,0.003,94545.0,94542.0,0.30805571]
[1739367887112,0.0001587,94558.0,94542.0,0.30805571]
[1739367887419,0.001,94556.0,94550.0,0.3608]
[1739367887927,0.3608,94551.0,94523.0,0.3608]
[1739367888121,0.3608,94538.0,94523.0,0.3608]
[1739367888524,0.2115462,94547.0,94534.0,0.3608]
[1739367888819,0.3608,94551.0,94534.0,0.3608]
[1739367889025,0.3608,94551.0,94534.0,0.30905571]
[1739367889526,0.3608,94551.0,94535.0,0.6777]
[1739367890318,0.3608,94551.0,94536.0,0.3974]
[1739367890518,0.3608,94551.0,94537.0,0.1942]
[1739367890926,0.3608,94576.0,94550.0,0.7216]
[1739367891126,0.2115039,94566.0,94550.0,0.3608]
[1739367892024,0.2115039,94566.0,94546.0,0.30805571]
[1739367892218,0.2115088,94564.0,94546.0,0.30805571]
[1739367892419,0.006,94551.0,94549.0,0.3608]
[1739367892724,0.006,94551.0,94546.0,0.3608]
[1739367893024,0.0071587,94558.0,94550.0,0.001]
[1739367893424,0.2116805,94558.0,94547.0,0.4221]
[1739367893615,0.007,94551.0,94549.0,0.001]
[1739367895115,0.0001587,94558.0,94550.0,0.34305571]
[1739367895312,0.0001587,94558.0,94550.0,0.76445571]
[1739367895313,0.0071587,94558.0,94550.0,0.76445571]
[1739367895828,0.007,94551.0,94550.0,0.78512742]
[1739367896034,0.0001587,94558.0,94550.0,0.78512742]
[1739367896322,0.0001587,94558.0,94550.0,0.56290298]
[1739367896830,0.3608,94586.0,94558.0,0.35622696]
[1739367897031,0.3608,94586.0,94569.0,0.3608]
[1739367897323,0.35622696,94580.0,94557.0,0.3608]
[1739367897528,0.3608,94586.0,94557.0,0.3608]
[1739367897714,0.5722607,94586.0,94566.0,0.3608]
[1739367897921,0.0001586,94581.0,94566.0,0.3608]
[1739367898222,0.3608,94578.0,94557.0,0.30821431]
[1739367898419,0.3608,94568.0,94545.0,0.3608]
[1739367898923,0.2115178,94560.0,94545.0,0.3608]
[1739367899319,0.0001586,94562.0,94545.0,0.3608]
[1739367899725,0.0001586,94562.0,94545.0,0.3648]
[1739367900620,0.0001586,94562.0,94545.0,0.004]
[1739367900621,0.3608,94559.0,94545.0,0.004]
[1739367900929,0.35622696,94560.0,94521.0,0.02051961]
[1739367900930,0.2115753,94535.0,94521.0,0.02051961]
[1739367901129,0.2115497,94546.0,94525.0,0.3608]
[1739367901317,0.2115957,94525.0,94507.0,0.3608]
[1739367901516,0.3608,94533.0,94510.0,0.35622696]
[1739367901823,0.3608,94533.0,94516.0,0.3608]
[1739367902022,0.0001587,94531.0,94512.0,0.0001587]
[1739367902323,0.3608,94516.0,94512.0,0.0001587]
[1739367902518,0.2116223,94513.0,94512.0,0.0001587]
[1739367902718,0.3608,94525.0,94512.0,0.0001587]
[1739367902925,0.3608,94525.0,94516.0,0.3608]
[1739367903322,0.3608,94525.0,94512.0,0.0021587]
[1739367903528,0.2116066,94521.0,94512.0,0.0021587]
[1739367904127,0.3608,94525.0,94512.0,0.0021587]
[1739367904426,0.5724145,94517.0,94510.0,0.13773441]
[1739367905026,0.3608,94517.0,94510.0,0.13773441]
[1739367906835,0.0001587,94531.0,94516.0,0.3608]
[1739367907126,0.0001587,94531.0,94529.0,0.3608]
[1739367907325,0.0001587,94531.0,94510.0,0.15876511]
[1739367907326,0.5723844,94530.0,94510.0,0.15876511]
[1739367907527,0.2116059,94521.0,94515.0,0.3608]
[1739367907833,0.001,94517.0,94510.0,0.15876511]
[1739367908030,0.001,94517.0,94512.0,0.3608]
[1739367908235,0.0001587,94531.0,94512.0,0.3608]
[1739367908535,0.0071587,94531.0,94529.0,0.001]
[1739367909031,0.0071587,94531.0,94520.0,0.3608]
[1739367909032,0.003,94521.0,94520.0,0.3608]
[1739367909236,0.003,94521.0,94512.0,0.3608]
[1739367909533,0.003,94521.0,94512.0,0.18656]
[1739367909930,0.003,94521.0,94511.0,0.3608]
[1739367910127,0.3608,94516.0,94504.0,0.0001587]
[1739367910330,0.211647,94503.0,94482.0,0.3608]
[1739367910536,0.3608,94496.0,94482.0,0.38104827]
[1739367911238,0.3608,94520.0,94490.0,0.3608]
[1739367911432,0.2116249,94512.0,94490.0,0.3608]
[1739367911641,0.0001587,94498.0,94490.0,0.3608]
[1739367913234,0.3609587,94498.0,94490.0,0.3608]
[1739367913542,0.0001587,94498.0,94490.0,0.30905571]
[1739367914431,0.0001587,94498.0,94490.0,0.001]
[1739367915342,0.3608,94495.0,94490.0,0.001]
[1739367916240,0.0021587,94498.0,94480.0,0.35846549]
[1739367916438,0.0021587,94498.0,94480.0,0.35830679]
[1739367916633,0.0021587,94498.0,94488.0,0.3608]
[1739367917937,0.0021587,94498.0,94487.0,0.02055788]
[1739367918242,0.0021587,94498.0,94478.0,0.18364]
[1739367918838,0.3608,94490.0,94478.0,0.18364]
[1739367919035,0.3608,94490.0,94471.0,0.00056]
[1739367919347,0.3608,94490.0,94470.0,0.02029781]
[1739367919348,0.3608,94479.0,94470.0,0.02029781]
[1739367919546,0.3608,94479.0,94462.0,0.32994145]
[1739367919749,0.3608,94490.0,94462.0,0.32994145]
[1739367920049,0.3608,94490.0,94470.0,0.3608]
[1739367920238,0.3608,94490.0,94471.0,0.7872]
[1739367920542,0.3608,94490.0,94471.0,0.7892]
[1739367922440,0.3608,94490.0,94471.0,0.73645571]
[1739367922643,0.3608,94490.0,94471.0,0.73445571]
[1739367922842,0.3608,94490.0,94480.0,0.3582305]
[1739367923037,0.3608,94490.0,94481.0,0.6509]
[1739367923535,0.0001587,94498.0,94486.0,0.3608]
[1739367924040,0.0001587,94498.0,94487.0,0.6509]
[1739367924446,0.002,94490.0,94487.0,0.6509]
[1739367924840,0.0001587,94498.0,94487.0,0.6509]
[1739367925240,0.0001587,94498.0,94488.0,0.6707]
[1739367925539,0.0001587,94498.0,94488.0,0.61795571]
[1739367925940,0.0041587,94498.0,94488.0,0.61795571]
[1739367926143,0.0041587,94498.0,94486.0,0.02084306]
[1739367926346,0.0041587,94498.0,94486.0,0.18128]
[1739367926648,0.18254866,94514.0,94495.0,0.3608]
[1739367927047,0.18254866,94514.0,94496.0,0.4125]
[1739367927745,0.18254866,94514.0,94500.0,0.23228528]
[1739367927962,0.18270736,94514.0,94503.0,0.3608]
[1739367928151,0.3608,94536.0,94511.0,0.3608]
[1739367928346,0.3608,94536.0,94520.0,0.3608]
[1739367928548,0.3608,94536.0,94511.0,0.3608]
[1739367928748,0.23228528,94521.0,94504.0,0.3981]
[1739367929058,0.5737331,94527.0,94510.0,0.3608]
[1739367929243,0.5737331,94527.0,94504.0,0.3981]
[1739367929553,0.0001587,94522.0,94510.0,0.3608]
[1739367930954,0.5737331,94527.0,94510.0,0.71883769]
[1739367931148,0.5737331,94527.0,94518.0,0.3608]
[1739367931543,0.5737331,94527.0,94518.0,0.30805571]
[1739367931848,0.24440895,94535.0,94526.0,0.7216]
[1739367932048,0.3608,94578.0,94534.0,0.3608]
[1739367932247,0.3608,94578.0,94557.0,0.35803769]
[1739367932557,0.3608,94599.0,94568.0,0.35803769]
[1739367932745,0.3608,94599.0,94585.0,0.3608]
[1739367933053,0.00015862,94593.0,94585.0,0.3608]
[1739367933251,0.3608,94608.0,94585.0,0.3608]
[1739367933442,0.09984138,94600.0,94596.0,0.3608]
[1739367933843,0.09984138,94600.0,94599.0,0.3608]
[1739367934550,0.00015862,94609.0,94599.0,0.3608]
[1739367934747,0.00015862,94609.0,94600.0,0.2553]
[1739367934950,0.3608,94631.0,94608.0,0.3608]
[1739367935144,0.3608,94618.0,94608.0,0.3608]
[1739367935358,0.3608,94618.0,94609.0,0.17892]
[1739367935752,0.35524476,94618.0,94609.0,0.17892]
[1739367935962,0.2113158,94651.0,94609.0,0.17892]
[1739367936153,0.3608,94624.0,94619.0,0.35803769]
[1739367936446,0.00015853,94623.0,94610.0,0.71883769]
[1739367936647,0.00015853,94623.0,94610.0,0.3608]
[1739367936846,0.00015853,94623.0,94609.0,0.17892]
[1739367937351,0.3608,94612.0,94609.0,0.17892]
[1739367937556,0.3608,94612.0,94610.0,0.17816]
[1739367937755,0.3608,94612.0,94610.0,0.12541571]
[1739367937955,0.00015853,94623.0,94610.0,0.12541571]
[1739367938155,0.00015853,94623.0,94610.0,0.4834534]
[1739367938356,0.00015853,94623.0,94610.0,0.12541571]
[1739367938957,0.00015853,94623.0,94610.0,0.4834534]
[1739367939455,0.00015853,94623.0,94619.0,0.3608]
[1739367939953,0.16880344,94647.0,94622.0,0.3608]
[1739367940162,0.16880344,94647.0,94633.0,0.3608]
[1739367940645,0.16880344,94647.0,94633.0,0.30805571]
[1739367940849,0.2113098,94653.0,94620.0,0.67806]
[1739367941062,0.3608,94640.0,94631.0,0.00015853]
[1739367941255,0.3608,94632.0,94631.0,0.00015853]
[1739367942060,0.3608,94632.0,94631.0,0.02641502]
[1739367942255,0.001,94647.0,94631.0,0.32641502]
[1739367942557,0.001,94647.0,94644.0,0.3608]
[1739367943157,0.00010424,94649.0,94644.0,0.3608]
[1739367943463,0.2112454,94682.0,94648.0,0.3608]
[1739367943656,0.3608,94689.0,94669.0,0.3608]
[1739367943853,0.3608,94681.0,94669.0,0.30805571]
[1739367944353,0.3608,94672.0,94658.0,0.3608]
[1739367944754,0.2112693,94671.0,94666.0,0.00015845]
[1739367945360,0.3608,94672.0,94666.0,0.00015845]
[1739367945558,0.3608,94681.0,94666.0,0.00015845]
[1739367945751,0.3608,94681.0,94672.0,0.3608]
[1739367946357,0.3608,94681.0,94670.0,0.3608]
[1739367946558,0.3608,94681.0,94670.0,0.71883769]
[1739367946754,0.3608,94681.0,94670.0,0.6660934]
[1739367946959,0.004,94681.0,94670.0,0.6660934]
[1739367947354,0.004,94681.0,94670.0,0.66603564]
[1739367947566,0.004,94681.0,94680.0,0.3608]
[1739367948753,0.004,94681.0,94674.0,0.3608]
[1739367948965,0.3608,94675.0,94649.0,0.53796]
[1739367949269,0.3608,94675.0,94650.0,0.38444607]
[1739367949561,0.3608,94675.0,94660.0,0.35803769]
[1739367949861,0.3608,94675.0,94650.0,0.3052934]
[1739367950066,0.3608,94663.0,94658.0,0.00015845]
[1739367950266,0.3608,94666.0,94658.0,0.00015845]
[1739367950458,0.3608,94663.0,94658.0,0.00015845]
[1739367950667,0.3608,94674.0,94658.0,0.00015845]
[1739367950854,0.3608,94674.0,94664.0,0.35803769]
[1739367951551,0.3608,94673.0,94658.0,0.36095845]
[1739367951755,0.006,94663.0,94658.0,0.36195845]
[1739367951956,0.006,94663.0,94658.0,0.38820762]
[1739367952165,0.00015817,94677.0,94658.0,0.38820762]
[1739367952460,0.00015817,94677.0,94663.0,0.35803769]
[1739367952663,0.3608,94676.0,94659.0,0.3934]
[1739367952860,0.3608,94676.0,94659.0,0.34065571]
[1739367953164,0.00015817,94677.0,94664.0,0.001]
[1739367953467,0.007,94674.0,94669.0,0.3608]
[1739367953764,0.006,94676.0,94669.0,0.3608]
[1739367954157,0.3608,94695.0,94669.0,0.3608]
[1739367954158,0.3608,94695.0,94671.0,0.3608]
[1739367954360,0.3608,94695.0,94685.0,0.35803769]
[1739367954763,0.1,94700.0,94685.0,0.35803769]
[1739367955163,0.1,94700.0,94695.0,0.3608]
[1739367955366,0.3608,94725.0,94698.0,0.3608]
[1739367955558,0.3608,94725.0,94712.0,0.3608]
[1739367955862,0.3608,94725.0,94712.0,0.30805571]
[1739367956063,0.2454,94749.0,94712.0,0.30805571]
[1739367956256,0.3608,94745.0,94730.0,0.35803769]
[1739367956458,0.3608,94745.0,94730.0,0.71883769]
[1739367957056,0.3608,94756.0,94740.0,0.3608]
[1739367957254,0.002,94749.0,94741.0,0.17496]
[1739367957657,0.3608,94765.0,94741.0,0.17496]
[1739367958063,0.3608,94765.0,94749.0,0.3608]
[1739367958368,0.3608,94765.0,94750.0,0.35803769]
[1739367958954,0.3608,94757.0,94749.0,0.3608]
[1739367959158,0.3608,94757.0,94750.0,0.1734]
[1739367959969,0.3608,94786.0,94750.0,0.1734]
[1739367960165,0.3608,94778.0,94770.0,0.35803769]
[1739367960361,0.3608,94778.0,94764.0,0.3608]
[1739367961452,0.3608,94790.0,94765.0,0.819]
[1739367961658,0.3608,94778.0,94770.0,0.35803769]
[1739367961862,0.3608,94790.0,94770.0,0.35803769]
[1739367962063,0.3608,94790.0,94780.0,0.35803769]
[1739367962268,0.1,94800.0,94780.0,0.35803769]
[1739367962468,0.1,94800.0,94790.0,0.35803769]
[1739367962666,0.1,94800.0,94791.0,0.17208]
[1739367963059,0.3608,94797.0,94791.0,0.17208]
[1739367963865,0.3608,94792.0,94791.0,0.17208]
[1739367965070,0.3608,94792.0,94791.0,0.11933571]
[1739367966373,0.085,94800.0,94791.0,0.11933571]
[1739367966759,0.04490359,94800.0,94794.0,0.3608]
[1739367966965,0.40089641,94800.0,94791.0,0.11933571]
[1739367967165,0.571801,94792.0,94786.0,0.00015826]
[1739367967363,0.5718108,94787.0,94786.0,0.00015826]
[1739367967959,0.5718108,94787.0,94775.0,0.17144]
[1739367967960,0.3608,94787.0,94775.0,0.17144]
[1739367968272,0.00015766,94796.0,94775.0,0.16943301]
[1739367968461,0.00015766,94796.0,94782.0,0.35803769]
[1739367969272,0.00015766,94796.0,94787.0,0.3608]
[1739367970267,0.00015766,94796.0,94780.0,0.00015826]
[1739367970470,0.3608,94789.0,94780.0,0.00015826]
[1739367970769,0.3608,94781.0,94780.0,1e-08]
[1739367970968,0.3608,94789.0,94780.0,0.02553135]
[1739367971269,0.3104395,94789.0,94779.0,0.35803769]
[1739367971870,0.3104395,94789.0,94770.0,0.74472682]
[1739367972272,0.3104395,94789.0,94770.0,0.74488508]
[1739367972471,0.3508499,94801.0,94786.0,0.3608]
[1739367972668,0.3608,94820.0,94794.0,0.3608]
[1739367972975,0.3608,94820.0,94800.0,0.35803769]
[1739367973268,0.3608,94831.0,94794.0,0.3608]
[1739367973479,0.3608,94820.0,94793.0,0.17092]
[1739367973671,0.3608,94820.0,94803.0,0.00015826]
[1739367973968,0.2109444,94817.0,94803.0,0.00015826]
[1739367974170,0.3608,94820.0,94800.0,0.35803769]
[1739367974368,0.3608,94820.0,94800.0,0.71883769]
[1739367974567,0.00015826,94822.0,94800.0,0.71883769]
[1739367974771,0.3608,94814.0,94800.0,0.71883769]
[1739367974969,0.00015826,94822.0,94800.0,0.3608]
[1739367975163,0.00015826,94822.0,94800.0,0.71883769]
[1739367975374,0.00015826,94822.0,94810.0,0.35803769]
[1739367976071,0.00015826,94822.0,94821.0,0.3608]
[1739367976283,1e-08,94822.0,94821.0,0.3608]
[1739367977270,1e-08,94822.0,94821.0,0.63341752]
[1739367977473,0.3608,94860.0,94837.0,0.2108994]
[1739367977680,0.3608,94876.0,94859.0,0.3608]
[1739367977979,0.2108119,94877.0,94860.0,0.35803769]
[1739367978367,0.3608,94882.0,94860.0,0.35803769]
[1739367978678,0.3608,94882.0,94859.0,0.3608]
[1739367978869,0.2108108,94877.0,94862.0,0.00015816]
[1739367979363,0.2108166,94875.0,94862.0,0.00015816]
[1739367979568,0.2108166,94875.0,94865.0,0.35803769]
[1739367980076,0.2108374,94865.0,94862.0,0.00015816]
[1739367980262,0.3608,94874.0,94858.0,0.3608]
[1739367980461,0.2108226,94872.0,94850.0,0.33102695]
[1739367980661,0.2108226,94872.0,94860.0,0.71883769]
[1739367980871,0.3608,94874.0,94860.0,0.71883769]
[1739367981676,0.3608,94866.0,94860.0,0.35803769]
[1739367981977,0.3608,94861.0,94858.0,1e-08]
[1739367982173,0.571647,94861.0,94858.0,1e-08]
[1739367982377,0.2108506,94859.0,94858.0,1e-08]
[1739367982878,0.5108506,94859.0,94858.0,1e-08]
[1739367983072,0.2108506,94859.0,94858.0,1e-08]
[1739367983270,1.09042,94860.0,94830.0,0.35803769]
[1739367983468,0.3608,94845.0,94816.0,0.3608]
[1739367983670,0.3608,94831.0,94816.0,0.3608]
[1739367984072,0.2109376,94820.0,94816.0,0.3608]
[1739367984275,0.3608,94831.0,94816.0,0.3608]
[1739367984472,0.3608,94823.0,94810.0,0.35803769]
[1739367984876,0.00015816,94827.0,94810.0,0.35803769]
[1739367985087,0.00015816,94827.0,94817.0,0.3608]
[1739367985378,0.3608,94822.0,94809.0,0.00015816]
[1739367985678,0.3608,94821.0,94809.0,0.00015816]
[1739367985869,0.5717355,94821.0,94809.0,0.00015816]
[1739367986070,0.2109452,94817.0,94809.0,0.00015816]
[1739367986266,0.2109452,94817.0,94806.0,0.3608]
[1739367986267,0.2109452,94817.0,94806.0,0.30821387]
[1739367986482,0.21096,94810.0,94806.0,0.30821387]
[1739367986673,0.3608,94821.0,94806.0,0.30821387]
[1739367987070,0.2109422,94818.0,94806.0,0.30821387]
[1739367987582,0.2109729,94804.0,94803.0,0.00015816]
[1739367988488,0.3608,94824.0,94803.0,0.00015816]
[1739367988683,0.3608,94824.0,94810.0,0.35803769]
[1739367989187,0.3608,94824.0,94803.0,0.02569634]
[1739367989373,0.3608,94824.0,94801.0,0.33375205]
[1739367989374,0.2109308,94823.0,94801.0,0.33375205]
[1739367989574,0.3608,94824.0,94801.0,0.3589301]
[1739367989781,0.3608,94816.0,94801.0,0.3589301]
[1739367989982,0.3608,94816.0,94806.0,0.35803769]
[1739367990184,0.3608,94824.0,94813.0,0.3608]
[1739367990480,0.00015816,94827.0,94821.0,0.3608]
[1739367990686,0.00015816,94827.0,94825.0,0.3608]
[1739367991584,0.00015816,94827.0,94825.0,0.38662628]
[1739367991776,0.3608,94855.0,94825.0,0.38662628]
[1739367991983,0.2108542,94858.0,94830.0,0.35803769]
[1739367992175,0.3608,94856.0,94841.0,0.3608]
[1739367992382,0.3608,94845.0,94825.0,0.33388199]
[1739367992586,0.3608,94856.0,94826.0,0.01648478]
[1739367992780,0.3608,94844.0,94825.0,0.33388199]
[1739367992982,0.3608,94856.0,94839.0,0.3608]
[1739367993274,0.00015816,94850.0,94840.0,0.35803769]
[1739367993476,0.00015816,94850.0,94839.0,0.3608]
[1739367993678,0.00015816,94850.0,94840.0,0.37452019]
[1739367993887,0.00015816,94850.0,94849.0,0.3608]
[1739367994787,0.00015816,94850.0,94846.0,0.02528601]
[1739367994981,0.00015816,94850.0,94839.0,0.3608]
[1739367995375,0.00015816,94850.0,94827.0,0.3608]
[1739367995582,0.3608,94841.0,94827.0,0.3608]
[1739367995881,0.3608,94841.0,94820.0,0.35803769]
[1739367996087,0.3608,94841.0,94830.0,0.35803769]
[1739367996287,0.00015816,94850.0,94835.0,0.3608]
[1739367996483,0.00015816,94850.0,94840.0,0.35803769]
[1739367996683,0.00015816,94850.0,94835.0,0.3608]
[1739367997090,0.00015816,94850.0,94835.0,0.39319087]
[1739367998289,0.00015816,94850.0,94835.0,0.03239087]
[1739367998484,0.00015816,94850.0,94825.0,0.3608]
[1739367998995,0.00015816,94850.0,94830.0,0.35803769]
[1739367999291,0.00015816,94850.0,94833.0,0.3608]
[1739368000194,0.00015816,94850.0,94842.0,0.3608]
[1739368001184,0.00015816,94850.0,94834.0,0.82054]
[1739368001491,0.00015816,94850.0,94834.0,0.76715571]
[1739368001691,0.36095816,94850.0,94834.0,0.79866023]
[1739368002091,0.00015816,94850.0,94847.0,0.3608]
[1739368002392,0.00015816,94850.0,94835.0,0.4249]
[1739368002692,0.00015816,94850.0,94841.0,0.3608]
[1739368003088,0.00015816,94850.0,94849.0,0.3608]
[1739368003996,0.00015816,94850.0,94849.0,0.39333656]
[1739368004697,0.00015816,94850.0,94849.0,0.34059227]
[1739368005293,0.00015816,94850.0,94849.0,0.03253656]
[1739368005490,0.00015816,94850.0,94842.0,0.00056]
[1739368005687,0.00015816,94850.0,94840.0,0.16216]
[1739368005892,0.3608,94849.0,94840.0,0.16216]
[1739368006087,0.3608,94849.0,94840.0,0.1942561]
[1739368006398,0.00015816,94850.0,94840.0,0.1942561]
[1739368006600,0.36095816,94850.0,94840.0,0.1942561]
[1739368007297,0.36095816,94850.0,94840.0,0.3824586]
[1739368007697,0.36095816,94850.0,94840.0,0.32971431]
[1739368007898,0.3608,94842.0,94840.0,0.2202986]
[1739368008499,0.23072201,94850.0,94840.0,0.2202986]
[1739368008695,0.3608,94843.0,94840.0,0.2202986]
[1739368009494,0.2108902,94842.0,94840.0,0.2202986]
[1739368009689,0.2108902,94842.0,94840.0,0.1882025]
[1739368009902,0.2109084,94833.0,94832.0,0.02932088]
[1739368010206,0.5717084,94833.0,94832.0,0.02932088]
[1739368010398,0.8717084,94833.0,94832.0,0.02932088]
[1739368010597,0.2109307,94823.0,94822.0,0.28752142]
[1739368010799,0.2109307,94823.0,94815.0,0.03293789]
[1739368010800,0.2109376,94820.0,94815.0,0.03293789]
[1739368011009,0.2109376,94820.0,94814.0,0.25153327]
[1739368011202,0.3608,94815.0,94814.0,0.25153327]
[1739368013603,0.5717485,94815.0,94814.0,0.19878898]
[1739368014003,0.3608,94815.0,94814.0,0.19878898]
[1739368015310,0.3608,94815.0,94809.0,0.03262281]
[1739368015507,0.3608,94815.0,94801.0,0.3608]
[1739368015897,0.00015816,94826.0,94809.0,0.3608]
[1739368016197,0.00015816,94826.0,94823.0,0.3608]
[1739368016702,0.00015816,94826.0,94823.0,0.30805571]
[1739368016903,0.3608,94857.0,94823.0,0.30805571]
[1739368016904,0.3608,94876.0,94823.0,0.66885571]
[1739368017208,0.00088001,94862.0,94850.0,0.3608]
[1739368017403,0.2107921,94886.0,94861.0,0.3608]
[1739368017902,0.5715663,94897.0,94869.0,0.3608]
[1739368018103,0.00015816,94883.0,94869.0,0.3608]
[1739368019802,0.71675038,94880.0,94869.0,0.30805571]
[1739368020001,0.3608,94872.0,94864.0,0.00015816]
[1739368020208,0.3608,94867.0,94841.0,0.3608]
[1739368020512,0.3608,94855.0,94841.0,0.3608]
[1739368021015,0.00060001,94866.0,94850.0,0.3608]
[1739368021305,0.3608,94885.0,94859.0,0.3608]
[1739368021504,0.00015816,94867.0,94859.0,0.3608]
[1739368022001,0.00015816,94867.0,94864.0,0.3608]
[1739368022900,0.1,94900.0,94865.0,0.2108366]
[1739368023115,0.1,94900.0,94861.0,0.16104]
[1739368023116,0.1,94900.0,94890.0,0.35595038]
[1739368023501,0.3608,94942.0,94899.0,0.3608]
[1739368023811,0.3608,94942.0,94923.0,0.3608]
[1739368024109,0.3608,94942.0,94918.0,0.3608]
[1739368024312,0.36095807,94942.0,94923.0,0.00015786]
[1739368024709,0.3608,94934.0,94923.0,0.00015786]
[1739368025902,0.00015807,94942.0,94920.0,0.35595038]
[1739368026102,0.00015807,94942.0,94934.0,0.3608]
[1739368026308,0.00015807,94942.0,94934.0,0.7216]
[1739368026511,0.20600811,94944.0,94934.0,0.7216]
[1739368026709,0.16872111,94944.0,94943.0,0.3608]
[1739368027309,0.1022223,94944.0,94943.0,0.52652]
[1739368027514,0.29400527,94951.0,94943.0,0.52652]
[1739368027817,0.3608,94987.0,94945.0,0.3608]
[1739368028005,0.21493523,94989.0,94961.0,0.7216]
[1739368028207,0.21493523,94989.0,94988.0,0.3608]
[1739368028807,0.21493523,94989.0,94988.0,0.30805571]
[1739368029110,0.2104947,95020.0,94988.0,0.30805571]
[1739368029111,0.3608,95032.0,94988.0,0.34041887]
[1739368029316,0.23979099,95004.0,94999.0,0.3608]
[1739368029520,0.3608,95032.0,95003.0,0.3608]
[1739368029809,0.3608,95022.0,95006.0,0.3608]
[1739368030308,0.5712891,95022.0,95006.0,0.3608]
[1739368030513,0.36095789,95022.0,95006.0,0.3608]
[1739368030903,0.00015789,95022.0,95006.0,0.3608]
[1739368031105,0.00015789,95022.0,95002.0,0.00015789]
[1739368031514,0.3608,95016.0,95002.0,0.00015789]
[1739368031706,0.2105095,95013.0,95002.0,0.00015789]